bitfinex/quotes_SOLUSD_20240717
["timestamp","ask_amount","ask_price","bid_price","bid_amount"]
[1721202651979,0.59430486,161.27,161.26,136.5564]
[1721202652193,0.59430486,161.27,161.26,151.3864]
[1721202652392,0.59430486,161.27,161.26,141.3864]
[1721202652602,0.59430486,161.27,161.26,151.3864]
[1721202653095,0.59430486,161.27,161.26,126.5564]
[1721202654386,0.59430486,161.27,161.26,111.7264]
[1721202654583,0.59430486,161.27,161.26,126.5564]
[1721202657188,0.59430486,161.27,161.26,136.5564]
[1721202657389,0.59430486,161.27,161.26,126.5564]
[1721202659587,0.59430486,161.27,161.26,136.5564]
[1721202659814,0.59430486,161.27,161.26,141.3864]
[1721202659988,0.59430486,161.27,161.26,126.5564]
[1721202661684,0.59430486,161.27,161.26,81.2164]
[1721202661890,0.59430486,161.27,161.26,64.83]
[1721202662183,0.59430486,161.27,161.26,44.83]
[1721202663401,0.59430486,161.27,161.26,64.83]
[1721202664693,0.59430486,161.27,161.26,109.83]
[1721202666387,0.59430486,161.27,161.26,110.17]
[1721202667317,0.59430486,161.27,161.26,120.17]
[1721202667495,0.59430486,161.27,161.26,130.17]
[1721202669290,0.59430486,161.27,161.26,120.17]
[1721202669498,0.59430486,161.27,161.26,110.17]
[1721202670622,0.59430486,161.27,161.26,120.17]
[1721202670999,0.59430486,161.27,161.26,110.17]
[1721202671511,0.59430486,161.27,161.26,120.17]
[1721202672223,0.59430486,161.27,161.26,50.0]
[1721202672423,0.59430486,161.27,161.26,74.83]
[1721202672602,0.59430486,161.27,161.26,76.06972853]
[1721202672917,0.59430486,161.27,161.26,90.89972853]
[1721202673406,0.59430486,161.27,161.26,89.83]
[1721202673728,0.59430486,161.27,161.26,135.0]
[1721202676419,0.59430486,161.27,161.26,120.17]
[1721202677523,0.59430486,161.27,161.26,95.34]
[1721202677696,0.59430486,161.27,161.26,80.17]
[1721202677895,0.59430486,161.27,161.26,50.0]
[1721202678317,0.59430486,161.27,161.26,64.83]
[1721202679222,0.59430486,161.27,161.26,119.83]
[1721202679394,0.59430486,161.27,161.26,120.17]
[1721202681324,0.59430486,161.27,161.26,95.34]
[1721202681530,0.59430486,161.27,161.26,120.17]
[1721202683219,0.59430486,161.27,161.26,110.17]
[1721202683423,0.59430486,161.27,161.26,109.83]
[1721202683600,0.59430486,161.27,161.26,110.0]
[1721202683801,0.59430486,161.27,161.26,110.17]
[1721202684115,0.59430486,161.27,161.26,110.0]
[1721202684629,0.59430486,161.27,161.26,110.17]
[1721202686724,0.59430486,161.27,161.26,120.17]
[1721202687322,0.59430486,161.27,161.26,130.17]
[1721202688208,0.59430486,161.27,161.26,50.0]
[1721202688415,0.59430486,161.27,161.26,64.83]
[1721202689027,0.59430486,161.27,161.26,66.06507821]
[1721202689230,0.59430486,161.27,161.26,64.83]
[1721202689611,0.59430486,161.27,161.26,110.0]
[1721202690628,0.59430486,161.27,161.26,145.0]
[1721202691031,0.59430486,161.27,161.26,130.17]
[1721202691232,0.59430486,161.27,161.26,120.17]
[1721202691402,0.59430486,161.27,161.26,130.17]
[1721202691802,0.59430486,161.27,161.26,145.0]
[1721202692215,0.59430486,161.27,161.26,120.17]
[1721202693905,0.59430486,161.27,161.26,95.34]
[1721202694336,0.59430486,161.27,161.26,64.83]
[1721202696107,0.59430486,161.27,161.26,74.83]
[1721202696307,0.59430486,161.27,161.26,75.0]
[1721202696513,0.59430486,161.27,161.26,95.0]
[1721202696707,0.59430486,161.27,161.26,50.0]
[1721202696937,0.59430486,161.27,161.26,64.83]
[1721202697112,0.59430486,161.27,161.26,34.83]
[1721202697908,0.59430486,161.27,161.26,20.0]
[1721202698113,0.59430486,161.27,161.26,14.83]
[1721202698335,0.59430486,161.27,161.26,34.83]
[1721202699739,0.59430486,161.27,161.22,15.6562]
[1721202699922,0.59430486,161.27,161.25,14.83]
[1721202700838,0.59430486,161.27,161.26,20.0]
[1721202701218,0.59430486,161.27,161.21,2.2348939]
[1721202701421,0.59430486,161.27,161.24,14.83]
[1721202701629,0.59430486,161.27,161.22,30.0]
[1721202701630,22.02930486,161.27,161.22,30.0]
[1721202701854,22.02930486,161.27,161.22,14.83]
[1721202702340,22.02930486,161.27,161.23,14.83]
[1721202702341,7.19930486,161.27,161.23,14.83]
[1721202702639,7.19930486,161.27,161.19,10.0]
[1721202702836,7.19930486,161.27,161.23,14.83]
[1721202704523,7.19930486,161.27,161.24,14.83]
[1721202704724,7.19930486,161.27,161.25,15.90302677]
[1721202704933,7.19930486,161.27,161.24,14.83]
[1721202705745,7.19930486,161.27,161.25,14.83]
[1721202705927,0.59430486,161.27,161.25,14.83]
[1721202706130,0.59430486,161.27,161.26,15.50677363]
[1721202706349,0.59430486,161.27,161.26,14.83]
[1721202711720,0.59430486,161.27,161.26,80.17]
[1721202712545,0.59430486,161.27,161.26,79.83]
[1721202713224,0.59430486,161.27,161.26,81.06976194]
[1721202713831,0.59430486,161.27,161.26,79.83]
[1721202715636,0.59430486,161.27,161.26,89.83]
[1721202715822,0.59430486,161.27,161.26,135.0]
[1721202716022,0.59430486,161.27,161.26,110.17]
[1721202716438,0.59430486,161.27,161.26,50.0]
[1721202716631,0.59430486,161.27,161.26,64.83]
[1721202717543,0.59430486,161.27,161.26,74.83]
[1721202717745,0.59430486,161.27,161.26,110.17]
[1721202721023,0.59430486,161.27,161.26,95.17]
[1721202721336,0.59430486,161.27,161.26,109.83]
[1721202721536,0.59430486,161.27,161.26,110.17]
[1721202721736,0.59430486,161.27,161.26,80.17]
[1721202721934,0.59430486,161.27,161.26,79.83]
[1721202722243,0.59430486,161.27,161.26,65.0]
[1721202722434,0.59430486,161.27,161.26,34.83]
[1721202726247,0.59430486,161.27,161.26,14.83]
[1721202726851,0.59430486,161.27,161.2,75.5845]
[1721202726852,0.59430486,161.27,161.2,16.2645]
[1721202727057,0.59430486,161.27,161.24,14.83]
[1721202727428,0.59430486,161.27,161.25,14.83]
[1721202727829,0.59430486,161.27,161.26,14.83]
[1721202728042,0.59430486,161.27,161.25,14.83]
[1721202729440,0.59430486,161.27,161.2,75.5845]
[1721202729653,2.14452238,161.27,161.21,20.0]
[1721202729839,2.14452238,161.27,161.22,14.83]
[1721202730257,2.14452238,161.27,161.17,16.44978386]
[1721202730258,6.2013,161.26,161.17,6.44978386]
[1721202730449,6.2013,161.26,161.14,26.01525493]
[1721202730450,8.2709,161.24,161.18,14.83]
[1721202730643,24.65155049,161.24,161.18,14.83]
[1721202730845,1.55071812,161.23,161.18,14.83]
[1721202731146,16.38071812,161.23,161.18,14.83]
[1721202731450,24.65161843,161.24,161.18,14.83]
[1721202731641,1.55071713,161.23,161.18,14.83]
[1721202732041,16.38071713,161.23,161.18,14.83]
[1721202732245,1.55071713,161.23,161.18,14.83]
[1721202732452,16.38071713,161.23,161.17,14.83]
[1721202732659,16.38071713,161.23,161.18,20.0]
[1721202733669,14.83,161.21,161.12,69.32]
[1721202733871,14.4729,161.24,161.13,44.83]
[1721202733872,14.83,161.18,161.13,44.83]
[1721202734369,14.83,161.18,161.13,30.0]
[1721202734776,14.83,161.18,161.13,44.83]
[1721202734945,14.83,161.19,161.13,44.83]
[1721202735161,1.55115368,161.18,161.13,44.83]
[1721202735349,14.83,161.19,161.13,44.83]
[1721202735840,1.72121906,161.23,161.15,14.83]
[1721202735841,14.83,161.2,161.15,14.83]
[1721202736044,1.55121906,161.23,161.17,14.83]
[1721202736345,1.55121906,161.23,161.18,0.93179624]
[1721202736544,14.83,161.22,161.18,0.93179624]
[1721202736944,1.55074301,161.23,161.19,14.83]
[1721202737169,16.38074301,161.23,161.18,14.83]
[1721202737349,14.83,161.23,161.18,14.83]
[1721202737552,30.85352839,161.24,161.19,16.07053921]
[1721202737775,1.55067401,161.23,161.19,14.83]
[1721202738078,23.1009,161.24,161.19,14.83]
[1721202738453,24.65158208,161.24,161.19,14.83]
[1721202739151,3.82478706,161.27,161.17,10.0]
[1721202739378,17.10410486,161.27,161.22,14.83]
[1721202740165,18.65445055,161.27,161.22,14.83]
[1721202740678,0.59430486,161.27,161.22,14.83]
[1721202741187,0.59430486,161.27,161.23,14.83]
[1721202742654,2.14456089,161.27,161.23,14.83]
[1721202742860,0.59430486,161.27,161.23,14.83]
[1721202743183,0.59430486,161.27,161.25,14.83]
[1721202743360,0.59430486,161.27,161.26,1.24007023]
[1721202743555,0.59430486,161.27,161.21,10.0]
[1721202743779,0.59430486,161.27,161.26,14.83]
[1721202744367,0.59430486,161.27,161.25,14.83]
[1721202744858,0.59430486,161.27,161.26,16.07008123]
[1721202745061,0.59430486,161.27,161.26,14.83]
[1721202745691,0.59430486,161.27,161.26,69.83]
[1721202745885,0.59430486,161.27,161.26,90.17]
[1721202746980,0.59430486,161.27,161.26,105.4533]
[1721202747784,0.59430486,161.27,161.26,120.6233]
[1721202747992,0.59430486,161.27,161.26,135.4533]
[1721202749275,0.59430486,161.27,161.26,125.1133]
[1721202749480,0.59430486,161.27,161.26,65.2833]
[1721202749664,0.59430486,161.27,161.26,50.1133]
[1721202750475,0.59430486,161.27,161.26,34.83]
[1721202751390,0.59430486,161.27,161.26,79.83]
[1721202751767,0.59430486,161.27,161.26,34.83]
[1721202751975,0.59430486,161.27,161.26,79.83]
[1721202752173,0.59430486,161.27,161.26,81.06972491]
[1721202752373,0.59430486,161.27,161.26,81.40972491]
[1721202753377,0.59430486,161.27,161.26,80.17]
[1721202754504,0.59430486,161.27,161.26,110.17]
[1721202756599,0.59430486,161.27,161.26,109.83]
[1721202757077,0.59430486,161.27,161.26,34.83]
[1721202759098,0.59430486,161.27,161.26,14.83]
[1721202760482,0.59430486,161.27,161.22,15.2045]
[1721202760685,0.59430486,161.27,161.26,14.83]
[1721202765803,0.59430486,161.27,161.26,59.83]
[1721202766301,0.59430486,161.27,161.26,79.83]
[1721202769601,0.59430486,161.27,161.26,34.83]
[1721202770904,0.59430486,161.27,161.26,14.83]
[1721202771102,0.59430486,161.27,161.23,30.0]
[1721202771408,0.59430486,161.27,161.26,14.83]
[1721202773693,0.59430486,161.27,161.24,20.0]
[1721202773898,0.59430486,161.27,161.26,14.83]
[1721202774095,0.59430486,161.27,161.19,2.34881083]
[1721202774299,0.59430486,161.27,161.24,14.83]
[1721202774807,0.59430486,161.27,161.25,1.2399714]
[1721202775014,0.59430486,161.27,161.26,14.83]
[1721202779057,0.59430486,161.27,161.21,10.0]
[1721202779202,0.59430486,161.27,161.24,14.83]
[1721202780791,0.59430486,161.27,161.19,22.34881083]
[1721202780996,15.42430486,161.27,161.22,14.83]
[1721202781220,1.55043731,161.26,161.23,14.83]
[1721202781531,14.83,161.25,161.19,2.34881083]
[1721202781812,16.38063942,161.24,161.14,32.1703]
[1721202782019,16.38063942,161.24,161.17,44.83]
[1721202782020,16.38073729,161.23,161.17,44.83]
[1721202782221,16.38073729,161.23,161.17,14.83]
[1721202782805,14.83,161.22,161.17,14.83]
[1721202783009,16.38073729,161.23,161.17,14.83]
[1721202783220,1.55078796,161.22,161.17,14.83]
[1721202783834,16.38078781,161.23,161.17,14.83]
[1721202784051,1.55078242,161.22,161.18,14.83]
[1721202784228,14.83,161.23,161.18,14.83]
[1721202784624,14.83,161.24,161.18,14.83]
[1721202784823,1.55077837,161.23,161.19,14.83]
[1721202785532,1.55077837,161.23,161.18,14.83]
[1721202785837,16.38078278,161.24,161.19,15.75559015]
[1721202786014,14.83,161.24,161.19,14.83]
[1721202786735,14.83,161.24,161.2,1.2405544]
[1721202787117,1.55069874,161.26,161.21,1.24049747]
[1721202787312,16.38069874,161.26,161.21,16.07049747]
[1721202787517,16.38069874,161.26,161.21,14.83]
[1721202788147,23.04397294,161.27,161.22,14.83]
[1721202789343,6.66350486,161.27,161.23,15.50254383]
[1721202789525,6.66350486,161.27,161.24,0.67447545]
[1721202789721,6.66350486,161.27,161.24,1.24024629]
[1721202791135,6.66350486,161.27,161.23,14.83]
[1721202793032,0.59430486,161.27,161.23,14.83]
[1721202793241,0.59430486,161.27,161.18,20.0]
[1721202793242,0.59430486,161.27,161.24,14.83]
[1721202794022,0.59430486,161.27,161.25,14.83]
[1721202796345,0.59430486,161.27,161.2,40.7542]
[1721202796643,0.59430486,161.27,161.21,20.0]
[1721202796832,0.59430486,161.27,161.23,14.83]
[1721202799824,8.34549316,161.27,161.21,20.0]
[1721202800146,23.17549316,161.27,161.22,14.83]
[1721202800344,2.14459316,161.27,161.24,14.83]
[1721202800935,0.59430486,161.27,161.23,14.83]
[1721202801829,0.59430486,161.27,161.21,20.0]
[1721202801830,0.59430486,161.27,161.24,14.83]
[1721202802028,0.59430486,161.27,161.22,0.58581821]
[1721202802233,0.59430486,161.27,161.23,14.83]
[1721202802833,23.17533459,161.27,161.21,20.0]
[1721202803139,14.83,161.26,161.21,20.0]
[1721202803337,1.55054078,161.25,161.21,14.83]
[1721202803538,16.38054078,161.25,161.2,14.83]
[1721202803752,16.38054078,161.25,161.19,14.83]
[1721202804439,16.38054078,161.25,161.16,16.4904]
[1721202804440,14.83,161.24,161.16,16.4904]
[1721202804641,1.55079894,161.23,161.18,14.83]
[1721202804841,1.55079894,161.23,161.17,30.0]
[1721202804842,16.38079894,161.23,161.17,30.0]
[1721202805031,14.83,161.22,161.17,30.0]
[1721202805236,16.38096286,161.21,161.17,30.0]
[1721202805437,1.55098525,161.2,161.17,30.0]
[1721202805949,1.55098525,161.2,161.16,14.83]
[1721202809441,14.83,161.19,161.12,16.5014]
[1721202809648,1.55123024,161.18,161.13,14.83]
[1721202810254,1.55116378,161.19,161.14,14.83]
[1721202811143,16.38116378,161.19,161.13,14.83]
[1721202811345,16.38116378,161.19,161.14,14.83]
[1721202811664,16.38116378,161.19,161.15,0.66035198]
[1721202811861,1.55116378,161.19,161.15,14.83]
[1721202812843,16.38116378,161.19,161.14,14.83]
[1721202813549,16.38116378,161.19,161.13,14.83]
[1721202815156,14.83,161.18,161.13,14.83]
[1721202815366,16.38131152,161.17,161.09,2.32899995]
[1721202815578,14.83,161.16,161.1,30.0]
[1721202815864,16.38149809,161.15,161.1,44.83]
[1721202816035,14.83,161.15,161.1,14.83]
[1721202816537,1.55150513,161.14,161.1,14.83]
[1721202818169,1.55150513,161.14,161.09,14.83]
[1721202818376,16.38150513,161.14,161.09,14.83]
[1721202818539,1.55163309,161.13,161.08,15.3713]
[1721202818745,1.55163309,161.13,161.09,20.0]
[1721202819770,1.55163309,161.13,161.09,34.83]
[1721202820161,1.55163309,161.13,161.09,20.0]
[1721202820342,16.38163309,161.13,161.08,14.83]
[1721202820549,14.83,161.13,161.09,20.0]
[1721202820766,14.83,161.14,161.09,34.83]
[1721202820943,1.55178018,161.13,161.09,34.83]
[1721202821576,16.38178018,161.13,161.08,14.83]
[1721202821765,1.55178018,161.13,161.08,14.83]
[1721202822071,16.38178018,161.13,161.08,14.83]
[1721202822254,14.83,161.13,161.08,14.83]
[1721202822662,14.83,161.14,161.09,14.83]
[1721202822861,1.55179538,161.13,161.09,14.83]
[1721202823051,1.55179538,161.13,161.06,1.24144256]
[1721202823253,16.38179538,161.13,161.06,1.24144256]
[1721202823446,16.38179538,161.13,161.07,14.83]
[1721202824272,21.1736,161.12,161.04,15.1666]
[1721202824473,21.1736,161.12,161.02,2.33930895]
[1721202824474,1.55196063,161.11,161.02,2.33930895]
[1721202824683,14.83,161.08,161.03,44.83]
[1721202824863,14.83,161.08,161.03,30.0]
[1721202824864,1.55226429,161.07,161.03,30.0]
[1721202825373,1.55226429,161.07,161.02,17.16930895]
[1721202825552,16.38226429,161.07,161.02,17.16930895]
[1721202825746,1.55235088,161.09,161.03,14.83]
[1721202825945,14.83,161.08,161.03,14.83]
[1721202826173,1.5523553,161.07,161.03,14.83]
[1721202826553,1.5523553,161.07,161.02,14.83]
[1721202826750,16.3823553,161.07,161.02,14.83]
[1721202827064,1.55240914,161.06,161.02,14.83]
[1721202827768,1.55240914,161.06,161.01,14.83]
[1721202828348,1.55240914,161.06,161.02,14.83]
[1721202829556,1.55240914,161.06,161.0,15.5319]
[1721202829752,14.83,161.06,161.01,34.83]
[1721202829970,1.55244966,161.08,161.02,1.24194723]
[1721202830282,1.55235754,161.07,161.02,16.07194723]
[1721202830754,16.38235754,161.07,161.01,34.83]
[1721202831075,14.83,161.04,160.96,6.45977985]
[1721202831280,16.38270685,161.03,160.98,14.83]
[1721202831855,16.38270685,161.03,160.99,6.2114]
[1721202832065,14.83,161.0,160.97,30.0]
[1721202832277,1.55305424,160.99,160.96,6.2125]
[1721202833286,1.55305424,160.99,160.92,1.96312334]
[1721202833582,16.38305757,160.98,160.93,30.0]
[1721202833756,16.38305757,160.98,160.95,6.213]
[1721202833957,1.55305757,160.98,160.95,6.213]
[1721202834470,1.55320837,160.97,160.95,6.213]
[1721202834668,1.55324601,160.96,160.92,6.2139]
[1721202834864,1.55347848,160.95,160.92,6.2139]
[1721202835072,1.55347623,160.98,160.93,6.2137]
[1721202839097,1.55347623,160.98,160.94,6.2134]
[1721202840195,1.55337021,160.99,160.91,1.24269901]
[1721202840489,1.55320972,160.98,160.87,16.46330976]
[1721202840661,1.55320972,160.98,160.86,15.42508874]
[1721202840662,7.76540972,160.98,160.91,6.2146]
[1721202840991,7.76540972,160.98,160.92,6.2141]
[1721202841294,6.2125,160.97,160.86,15.42508874]
[1721202841480,1.55354368,160.96,160.87,30.0]
[1721202841785,1.55354441,160.96,160.93,6.2135]
[1721202841979,1.5533785,160.98,160.95,6.213]
[1721202842178,6.3837,161.04,160.99,6.2115]
[1721202842389,1.55291952,161.03,160.99,6.2115]
[1721202842686,7.76301952,161.03,160.97,6.2119]
[1721202842856,7.76291952,161.03,160.97,6.2123]
[1721202843062,1.55291952,161.03,160.93,16.28]
[1721202843297,7.93650074,161.04,161.02,6.2104]
[1721202843462,1.55274414,161.03,161.0,6.211]
[1721202843889,7.93642206,161.04,161.01,6.2107]
[1721202844269,7.93642206,161.04,161.0,6.211]
[1721202844680,7.93642206,161.04,160.99,6.2115]
[1721202845089,7.93642206,161.04,160.95,1.24221665]
[1721202845295,6.3837,161.04,160.96,1.24207291]
[1721202845972,6.3837,161.04,161.01,6.2107]
[1721202846293,7.93633584,161.04,161.01,6.2107]
[1721202846985,7.93633584,161.04,160.94,105.02]
[1721202847299,7.93633584,161.04,160.94,104.85]
[1721202847470,7.93633584,161.04,160.99,6.2112]
[1721202848373,7.93633584,161.04,160.94,49.68]
[1721202848579,0.34,161.03,160.94,20.0]
[1721202848785,1.55295417,161.02,160.94,20.0]
[1721202849106,1.55295517,161.01,160.94,20.0]
[1721202849391,1.55295517,161.01,160.97,6.2119]
[1721202849988,6.5503,161.03,160.97,6.2119]
[1721202850182,1.55295354,161.02,160.97,6.2119]
[1721202850485,1.5529545,161.01,160.98,6.2119]
[1721202850869,1.5529545,161.01,160.99,6.2115]
[1721202851096,1.89288211,161.03,160.99,6.2115]
[1721202851398,1.55288211,161.03,160.99,6.2115]
[1721202851572,1.55288211,161.03,161.0,6.2111]
[1721202852798,1.55288211,161.03,160.99,6.2114]
[1721202855596,7.76288211,161.03,160.94,20.0]
[1721202855984,0.34,161.02,160.91,1.2424624]
[1721202856182,6.2111,161.0,160.89,18.24924313]
[1721202856504,1.55324338,160.99,160.95,6.2128]
[1721202856674,6.2108,161.01,160.96,6.2127]
[1721202857789,0.34,161.02,160.97,6.2121]
[1721202857999,1.55303415,161.02,160.97,6.2121]
[1721202858304,1.55307676,161.01,160.97,6.2121]
[1721202858473,1.55307672,161.03,160.94,10.0]
[1721202858675,1.55307672,161.03,160.95,45.0]
[1721202858913,1.55307672,161.03,160.99,6.2114]
[1721202859075,1.55307672,161.03,160.96,6.2126]
[1721202859574,7.76317672,161.03,160.97,6.2122]
[1721202859783,6.2104,161.02,160.97,6.2122]
[1721202860007,1.55305637,161.01,160.96,6.2126]
[1721202860301,1.55305637,161.01,160.95,6.213]
[1721202860302,7.76395637,161.01,160.95,6.213]
[1721202861001,6.3813,161.0,160.94,6.2134]
[1721202861297,7.76498372,160.99,160.93,6.2138]
[1721202861491,1.72343303,160.98,160.93,6.2138]
[1721202861678,6.1415,160.97,160.92,6.2141]
[1721202861886,1.55354069,160.96,160.92,6.2141]
[1721202862085,1.55354418,160.95,160.92,6.2141]
[1721202862789,1.55354418,160.95,160.93,6.2136]
[1721202862991,1.55349632,160.96,160.93,6.2136]
[1721202863190,1.55349657,160.95,160.93,6.2136]
[1721202863403,1.55349657,160.95,160.9,1.24285539]
[1721202863404,1.55349657,160.95,160.94,6.2134]
[1721202863801,1.55349657,160.95,160.93,6.2138]
[1721202864306,1.55349284,160.96,160.93,6.2138]
[1721202864494,1.55349308,160.95,160.93,6.2138]
[1721202865079,1.55349308,160.95,160.92,6.2141]
[1721202865284,1.55349308,160.95,160.9,6.2149]
[1721202865588,1.55349308,160.95,160.91,6.2146]
[1721202865798,1.55349308,160.95,160.89,15.9303]
[1721202865799,6.1415,160.97,160.92,6.2141]
[1721202865992,1.55353096,160.96,160.92,6.2141]
[1721202866310,1.55353459,160.95,160.92,6.2141]
[1721202867292,6.1415,160.97,160.89,15.9303]
[1721202867608,1.89368453,160.96,160.89,15.9303]
[1721202867817,1.55367268,160.95,160.89,15.9303]
[1721202868183,1.55367268,160.95,160.9,14.85]
[1721202868489,1.55367268,160.95,160.91,6.2145]
[1721202869102,1.55367268,160.95,160.92,6.2142]
[1721202869508,1.55367268,160.95,160.9,14.85]
[1721202869693,14.85,160.94,160.9,6.2147]
[1721202869901,1.55356417,160.93,160.91,6.2146]
[1721202870813,14.85,160.95,160.91,6.2146]
[1721202871120,14.85,160.95,160.89,14.85]
[1721202871916,0.34,160.96,160.89,14.85]
[1721202872124,14.85,160.95,160.86,0.24588874]
[1721202872412,14.85,160.95,160.89,14.85]
[1721202872621,1.55363422,160.96,160.88,59.4]
[1721202872912,1.55340108,160.95,160.94,6.2134]
[1721202873119,16.40339374,160.96,160.94,6.2134]
[1721202873290,1.55339975,160.95,160.93,6.2137]
[1721202873926,1.55339975,160.95,160.92,6.2142]
[1721202875021,1.55339975,160.95,160.92,6.2141]
[1721202876232,1.55339975,160.95,160.91,6.2145]
[1721202876402,16.40339975,160.95,160.91,6.2145]
[1721202876716,14.85,160.95,160.92,6.2142]
[1721202878023,14.85,160.96,160.92,6.2142]
[1721202878198,1.55353441,160.95,160.93,6.2138]
[1721202879105,1.55347826,160.96,160.93,6.2138]
[1721202879418,1.55350501,160.95,160.93,6.2138]
[1721202879615,16.40350501,160.95,160.92,6.2141]
[1721202880300,14.85,160.95,160.92,6.2141]
[1721202882192,6.2128,160.96,160.88,14.85]
[1721202882417,14.85,160.94,160.89,14.85]
[1721202882607,1.55370504,160.93,160.89,14.85]
[1721202882808,1.55370087,160.92,160.88,6.2154]
[1721202883008,1.55370087,160.92,160.88,21.0654]
[1721202883319,1.55370087,160.92,160.89,21.0653]
[1721202883622,21.2331,160.95,160.89,21.0653]
[1721202884206,52.7269,160.94,160.86,0.24588874]
[1721202884530,14.85,160.89,160.86,0.24588874]
[1721202884701,1.55419298,160.88,160.86,0.24588874]
[1721202885596,16.40419298,160.88,160.86,0.24588874]
[1721202885797,14.85,160.87,160.86,0.24588874]
[1721202886503,16.40439159,160.87,160.86,0.24588874]
[1721202889325,22.79049159,160.87,160.86,0.24588874]
[1721202889534,22.96049159,160.87,160.86,0.24588874]
[1721202890504,67.96049159,160.87,160.86,0.24588874]
[1721202899164,74.39430943,160.87,160.86,0.24588874]
[1721202902913,22.62049159,160.87,160.86,0.24588874]
[1721202903635,1.55439159,160.87,160.86,0.24588874]
[1721202903813,14.85,160.88,160.86,0.24588874]
[1721202904117,16.40437699,160.87,160.86,0.24588874]
[1721202904324,22.62047699,160.87,160.86,0.24588874]
[1721202905130,67.96047699,160.87,160.86,0.24588874]
[1721202905509,21.4061,160.87,160.86,0.24588874]
[1721202906124,66.4061,160.87,160.86,0.24588874]
[1721202906652,21.4061,160.87,160.86,0.24588874]
[1721202906841,66.4061,160.87,160.86,0.24588874]
[1721202907622,67.9608475,160.87,160.86,0.24588874]
[1721202916248,22.6208475,160.87,160.86,0.24588874]
[1721202916460,14.85,160.87,160.86,0.24588874]
[1721202916633,22.62058356,160.87,160.86,0.24588874]
[1721202917333,22.79058356,160.87,160.86,0.24588874]
[1721202917637,22.62058356,160.87,160.86,0.24588874]
[1721202919044,7.77058356,160.87,160.86,0.24588874]
[1721202919253,21.0661,160.87,160.86,0.24588874]
[1721202919452,21.0658,160.88,160.86,0.24588874]
[1721202919633,1.55432906,160.87,160.86,0.24588874]
[1721202919951,14.85,160.89,160.86,0.24588874]
[1721202920138,1.5542222,160.88,160.86,0.24588874]
[1721202920542,1.55418589,160.93,160.86,15.69228874]
[1721202920741,14.85,160.92,160.87,14.85]
[1721202921053,1.55392089,160.91,160.88,14.85]
[1721202921239,7.76774302,160.93,160.88,14.85]
[1721202921423,1.55383245,160.92,160.88,14.85]
[1721202921629,1.55383245,160.92,160.89,14.85]
[1721202922142,1.55374335,160.93,160.89,14.85]
[1721202922558,1.5536795,160.92,160.89,14.85]
[1721202922763,7.7678795,160.92,160.89,14.85]
[1721202923136,1.5536795,160.92,160.89,14.85]
[1721202924062,6.2139,160.93,160.89,14.85]
[1721202924063,1.55368382,160.93,160.89,14.85]
[1721202924538,1.55372,160.92,160.89,14.85]
[1721202925053,1.55371192,160.93,160.89,14.85]
[1721202925650,1.55371192,160.93,160.9,14.85]
[1721202925958,1.55370073,160.92,160.9,14.85]
[1721202926260,7.7676147,160.93,160.9,14.85]
[1721202926562,7.76712149,160.94,160.9,14.85]
[1721202926757,1.55362149,160.94,160.9,14.85]
[1721202927055,1.55359042,160.95,160.92,14.85]
[1721202927274,1.5534542,160.96,160.92,31.4912]
[1721202927434,6.2123,160.97,160.93,16.09266034]
[1721202927435,1.55332543,160.97,160.93,16.09266034]
[1721202927633,1.55332543,160.97,160.94,14.85]
[1721202927851,1.55332543,160.97,160.95,14.85]
[1721202928050,1.55332543,160.97,160.94,14.85]
[1721202930056,1.55332543,160.97,160.95,14.85]
[1721202931063,1.55319605,160.98,160.95,14.85]
[1721202931429,7.76519605,160.98,160.95,14.85]
[1721202931855,14.85,161.0,160.95,14.85]